fUST/lending_fUST_20250719
["ID","MTS","AMOUNT","RATE_DAILY","PERIOD"]
[373193469,1752900647102,-460.0,0.00017808,2]
[373193472,1752900647111,-460.0,0.00017808,2]
[373193474,1752900647121,-460.0,0.00017808,2]
[373193476,1752900647130,-589.46,0.00017808,2]
[373193478,1752900647139,-3599.72,0.00017808,2]
[373193480,1752900647150,-2287.74,0.00017808,2]
[373193482,1752900647160,-2754.9,0.00017808,2]
[373193484,1752900647170,-471.42,0.00017808,2]
[373193486,1752900647179,-460.0,0.00017808,2]
[373193488,1752900647189,-460.0,0.00017808,2]
[373193490,1752900647199,-920.5,0.00017808,2]
[373193492,1752900647208,-460.0,0.00017808,2]
[373193494,1752900647219,-1712.89,0.00017808,2]
[373193496,1752900647228,-557.01,0.00017808,2]
[373193498,1752900647238,-776.6,0.00017808,2]
[373193500,1752900647250,-460.0,0.00017808,2]
[373193502,1752900647260,-476.99766685,0.00017808,2]
[373193504,1752900647270,-460.0,0.00017808,2]
[373193506,1752900647280,-964.8,0.00017808,2]
[373193508,1752900647290,-470.44713192,0.00017808,2]
[373193510,1752900647300,-893.47,0.00017808,2]
[373193512,1752900647310,-460.0,0.00017808,2]
[373193514,1752900647320,-1517.57,0.00017808,2]
[373193516,1752900647329,-460.0,0.00017808,2]
[373193518,1752900647339,-460.0,0.00017808,2]
[373193520,1752900647349,-460.0,0.00017808,2]
[373193522,1752900647358,-460.0,0.00017808,2]
[373193524,1752900647368,-460.0,0.00017808,2]
[373193526,1752900647379,-460.0,0.00017808,2]
[373193528,1752900647389,-512.78,0.00017808,2]
[373193530,1752900647399,-1602.46,0.00017808,2]
[373193532,1752900647409,-460.0,0.00017808,2]
[373193534,1752900647419,-1744.08,0.00017808,2]
[373193536,1752900647428,-464.92,0.00017808,2]
[373193538,1752900647437,-460.0,0.00017808,2]
[373193540,1752900647447,-460.0,0.00017808,2]
[373193542,1752900647456,-460.0,0.00017808,2]
[373193545,1752900647466,-460.0,0.00017808,2]
[373193547,1752900647476,-460.0,0.00017808,2]
[373193549,1752900647485,-1317.83,0.00017808,2]
[373193551,1752900647495,-3731.37734843,0.00017831,2]
[373193553,1752900647504,-1143.57,0.00017867,2]
[373193555,1752900647514,-1666.0,0.00017951,2]
[373193557,1752900647523,-420.0,0.00017951,2]
[373193559,1752900647532,-210.0,0.00018041,2]
[373193561,1752900647542,-240.52807795,0.0001808,2]
[373193563,1752900647551,-500.0,0.0001808,2]
[373193565,1752900647560,-460.0,0.00018082,2]
[373193567,1752900647570,-460.0,0.00018082,2]
[373193569,1752900647580,-560.82,0.00018082,2]
[373193571,1752900647590,-460.0,0.00018082,2]
[373193573,1752900647600,-1075.38,0.00018082,2]
[373193575,1752900647610,-460.0,0.00018082,2]
[373193577,1752900647620,-460.0,0.00018082,2]
[373193579,1752900647630,-460.0,0.00018082,2]
[373193581,1752900647640,-460.0,0.00018082,2]
[373193583,1752900647650,-589.46,0.00018082,2]
[373193585,1752900647659,-3599.72,0.00018082,2]
[373193587,1752900647669,-2287.74,0.00018082,2]
[373193589,1752900647678,-2754.9,0.00018082,2]
[373193591,1752900647688,-471.42,0.00018082,2]
[373193593,1752900647697,-460.0,0.00018082,2]
[373193595,1752900647706,-460.0,0.00018082,2]
[373193597,1752900647716,-920.5,0.00018082,2]
[373193599,1752900647726,-460.0,0.00018082,2]
[373193601,1752900647735,-1712.89,0.00018082,2]
[373193603,1752900647745,-557.01,0.00018082,2]
[373193605,1752900647755,-776.6,0.00018082,2]
[373193607,1752900647765,-460.0,0.00018082,2]
[373193609,1752900647774,-460.0,0.00018082,2]
[373193611,1752900647783,-964.8,0.00018082,2]
[373193613,1752900647793,-893.47,0.00018082,2]
[373193615,1752900647802,-460.0,0.00018082,2]
[373193617,1752900647812,-460.0,0.00018082,2]
[373193619,1752900647822,-1517.57,0.00018082,2]
[373193621,1752900647831,-460.0,0.00018082,2]
[373193623,1752900647842,-460.0,0.00018082,2]
[373193625,1752900647852,-460.0,0.00018082,2]
[373193627,1752900647862,-460.0,0.00018082,2]
[373193629,1752900647871,-460.0,0.00018082,2]
[373193631,1752900647881,-512.78,0.00018082,2]
[373193633,1752900647890,-1602.46,0.00018082,2]
[373193635,1752900647900,-460.0,0.00018082,2]
[373193637,1752900647910,-1744.08,0.00018082,2]
[373193639,1752900647919,-460.0,0.00018082,2]
[373193641,1752900647929,-460.0,0.00018082,2]
[373193643,1752900647939,-460.0,0.00018082,2]
[373193645,1752900647950,-460.0,0.00018082,2]
[373193647,1752900647959,-460.0,0.00018082,2]
[373193648,1752900647969,-1317.83,0.00018082,2]
[373193649,1752900647978,-1143.57,0.00018141,2]
[373193650,1752900647987,-3731.37734843,0.00018141,2]
[373193651,1752900647996,-183.41532937,0.00018142,2]
[373193652,1752900648006,-215.67360783,0.00018246,2]
[373193653,1752900648015,-160.0,0.00018246,2]
[373193654,1752900648024,-160.0,0.00018246,2]
[373193655,1752900648033,-839.454303,0.00018246,2]
[373193656,1752900648042,-214.52603969,0.00018246,2]
[373193657,1752900648051,-160.0,0.00018246,2]
[373193658,1752900648061,-230.94145789,0.00018246,2]
[373193659,1752900648070,-476.34170116,0.00018246,2]
[373193660,1752900648079,-160.0,0.00018246,2]
[373193661,1752900648089,-12612.80205064,0.00018246,2]
[373193662,1752900648098,-525.83049785,0.00018246,2]
[373193663,1752900648107,-160.0,0.00018248,2]
[373193664,1752900648116,-160.0,0.00018248,2]
[373193665,1752900648125,-160.0,0.00018249,2]
[373193666,1752900648134,-500.0,0.00018354,2]
[373193667,1752900648143,-460.0,0.00018356,2]
[373193668,1752900648152,-560.82,0.00018356,2]
[373193669,1752900648161,-1075.38,0.00018356,2]
[373193670,1752900648170,-460.0,0.00018356,2]
[373193671,1752900648179,-460.0,0.00018356,2]
[373193672,1752900648189,-460.0,0.00018356,2]
[373193673,1752900648199,-460.0,0.00018356,2]
[373193674,1752900648208,-589.46,0.00018356,2]
[373193675,1752900648217,-3599.72,0.00018356,2]
[373193676,1752900648226,-2287.74,0.00018356,2]
[373193678,1752900648236,-2754.9,0.00018356,2]
[373193679,1752900648247,-471.42,0.00018356,2]
[373193681,1752900648259,-460.0,0.00018356,2]
[373193683,1752900648268,-489.17335677,0.00018356,2]
[373193685,1752900648277,-920.5,0.00018356,2]
[373193687,1752900648287,-460.0,0.00018356,2]
[373193689,1752900648297,-1712.89,0.00018356,2]
[373193691,1752900648307,-557.01,0.00018356,2]
[373193693,1752900648317,-776.6,0.00018356,2]
[373193696,1752900648330,-460.0,0.00018356,2]
[373193698,1752900648340,-460.0,0.00018356,2]
[373193700,1752900648350,-964.8,0.00018356,2]
[373193702,1752900648359,-893.47,0.00018356,2]
[373193704,1752900648369,-460.0,0.00018356,2]
[373193706,1752900648378,-460.0,0.00018356,2]
[373193708,1752900648388,-1517.57,0.00018356,2]
[373193710,1752900648398,-460.0,0.00018356,2]
[373193712,1752900648407,-460.0,0.00018356,2]
[373193714,1752900648417,-460.0,0.00018356,2]
[373193716,1752900648427,-460.0,0.00018356,2]
[373193718,1752900648437,-512.78,0.00018356,2]
[373193720,1752900648446,-1602.46,0.00018356,2]
[373193722,1752900648456,-460.0,0.00018356,2]
[373193724,1752900648466,-1744.08,0.00018356,2]
[373193726,1752900648475,-460.0,0.00018356,2]
[373193728,1752900648484,-460.0,0.00018356,2]
[373193730,1752900648493,-460.0,0.00018356,2]
[373193732,1752900648504,-460.0,0.00018356,2]
[373193734,1752900648513,-460.0,0.00018356,2]
[373193736,1752900648523,-1317.83,0.00018356,2]
[373193738,1752900648532,-3801.642,0.00018367,2]
[373193740,1752900648542,-207.4,0.00018367,2]
[373193742,1752900648552,-151.0,0.00018367,2]
[373193744,1752900648562,-151.0,0.00018367,2]
[373193746,1752900648571,-151.0,0.00018367,2]
[373193748,1752900648580,-151.0,0.00018367,2]
[373193750,1752900648591,-151.0,0.00018367,2]
[373193752,1752900648601,-151.0,0.00018367,2]
[373193754,1752900648610,-151.0,0.00018367,2]
[373193756,1752900648620,-151.0,0.00018367,2]
[373193758,1752900648629,-151.0,0.00018367,2]
[373193760,1752900648639,-151.0,0.00018367,2]
[373193762,1752900648649,-151.0,0.00018367,2]
[373193764,1752900648658,-151.0,0.00018367,2]
[373193766,1752900648668,-151.0,0.00018367,2]
[373193768,1752900648677,-151.0,0.00018367,2]
[373193770,1752900648687,-151.0,0.00018367,2]
[373193772,1752900648697,-151.0,0.00018367,2]
[373193775,1752900648709,-151.0,0.00018367,2]
[373193777,1752900648728,-151.0,0.00018367,2]
[373193778,1752900648740,-151.0,0.00018367,2]
[373193780,1752900648749,-151.0,0.00018367,2]
[373193781,1752900648758,-151.0,0.00018367,2]
[373193782,1752900648769,-25000.0,0.00018367,2]
[373193783,1752900648779,-716.45673598,0.00018367,2]
[373193784,1752900648788,-1143.57,0.00018415,2]
[373193785,1752900648798,-3942.302754,0.00018422,2]
[373193786,1752900648807,-3731.37734843,0.00018452,2]
[373193787,1752900648817,-305.40284297,0.00018477,2]
[373193788,1752900648859,-500.0,0.00018628,2]
[373193789,1752900648869,-500.0,0.00018629,2]
[373193790,1752900648879,-472.049229,0.0001863,2]
[373193791,1752900648888,-560.82,0.0001863,2]
[373193792,1752900648898,-1075.38,0.0001863,2]
[373193793,1752900648908,-460.0,0.0001863,2]
[373193794,1752900648917,-460.0,0.0001863,2]
[373193795,1752900648927,-460.0,0.0001863,2]
[373193796,1752900648937,-460.0,0.0001863,2]
[373193797,1752900648947,-589.46,0.0001863,2]
[373193798,1752900648956,-3599.72,0.0001863,2]
[373193799,1752900648965,-2287.74,0.0001863,2]
[373193800,1752900648975,-2754.9,0.0001863,2]
[373193801,1752900648985,-471.42,0.0001863,2]
[373193802,1752900648994,-460.0,0.0001863,2]
[373193803,1752900649003,-920.5,0.0001863,2]
[373193805,1752900649013,-460.0,0.0001863,2]
[373193807,1752900649023,-1712.89,0.0001863,2]
[373193809,1752900649032,-557.01,0.0001863,2]
[373193811,1752900649043,-776.6,0.0001863,2]
[373193813,1752900649052,-211.06105231,0.0001863,2]
[373193815,1752900649061,-460.0,0.0001863,2]
[373193817,1752900649071,-964.8,0.0001863,2]
[373193819,1752900649081,-893.47,0.0001863,2]
[373193821,1752900649091,-460.0,0.0001863,2]
[373193823,1752900649100,-460.0,0.0001863,2]
[373193825,1752900649110,-1517.57,0.0001863,2]
[373193827,1752900649120,-460.0,0.0001863,2]
[373193829,1752900649129,-460.0,0.0001863,2]
[373193831,1752900649139,-477.7346262,0.0001863,2]
[373193833,1752900649148,-460.0,0.0001863,2]
[373193835,1752900649158,-512.78,0.0001863,2]
[373193837,1752900649167,-1602.46,0.0001863,2]
[373193839,1752900649177,-460.0,0.0001863,2]
[373193841,1752900649186,-1744.08,0.0001863,2]
[373193843,1752900649196,-460.0,0.0001863,2]
[373193845,1752900649205,-460.0,0.0001863,2]
[373193847,1752900649215,-270.1,0.0001863,2]
[373193849,1752900649224,-460.0,0.0001863,2]
[373193851,1752900649234,-460.0,0.0001863,2]
[373193853,1752900649243,-1317.83,0.0001863,2]
[373193855,1752900649257,-800.0,0.00018638,2]
[373193857,1752900649266,-1143.57,0.00018689,2]
[373193859,1752900649276,-3731.37734843,0.00018762,2]
[373193861,1752900649285,-7356.9806417,0.00018811,2]
[373193863,1752900649294,-558.26514737,0.00018893,2]
[373193865,1752900649304,-302.8183302,0.000189,2]
[373193867,1752900649313,-1445.0674579,0.000189,2]
[373193869,1752900649323,-500.0,0.00018902,2]
[373193871,1752900649332,-560.82,0.00018904,2]
[373193873,1752900649342,-1075.38,0.00018904,2]
[373193875,1752900649352,-460.0,0.00018904,2]
[373193877,1752900649362,-460.0,0.00018904,2]
[373193879,1752900649371,-531.33651188,0.00018904,2]
[373193881,1752900649380,-460.0,0.00018904,2]
[373193883,1752900649390,-589.46,0.00018904,2]
[373193885,1752900649400,-3599.72,0.00018904,2]
[373193887,1752900649409,-2287.74,0.00018904,2]
[373193889,1752900649419,-2754.9,0.00018904,2]
[373193891,1752900649428,-471.42,0.00018904,2]
[373193893,1752900649437,-460.0,0.00018904,2]
[373193895,1752900649447,-920.5,0.00018904,2]
[373193897,1752900649457,-526.17,0.00018904,2]
[373193899,1752900649466,-1712.89,0.00018904,2]
[373193901,1752900649476,-557.01,0.00018904,2]
[373193903,1752900649486,-776.6,0.00018904,2]
[373193905,1752900649495,-151.0,0.00018904,2]
[373193907,1752900649505,-460.0,0.00018904,2]
[373193909,1752900649514,-151.0,0.00018904,2]
[373193911,1752900649523,-964.8,0.00018904,2]
[373193913,1752900649532,-151.490521,0.00018904,2]
[373193915,1752900649542,-151.0,0.00018904,2]
[373193917,1752900649551,-893.47,0.00018904,2]
[373193919,1752900649560,-474.89,0.00018904,2]
[373193921,1752900649569,-151.0,0.00018904,2]
[373193923,1752900649578,-330.25950427,0.00018904,2]
[373193925,1752900649588,-1517.57,0.00018904,2]
[373193927,1752900649597,-460.0,0.00018904,2]
[373193929,1752900649607,-460.0,0.00018904,2]
[373193931,1752900649616,-151.0,0.00018904,2]
[373193933,1752900649625,-460.0,0.00018904,2]
[373193935,1752900649635,-512.78,0.00018904,2]
[373193937,1752900649644,-151.0,0.00018904,2]
[373193939,1752900649654,-1602.46,0.00018904,2]
[373193941,1752900649663,-154.923576,0.00018904,2]
[373193943,1752900649672,-151.0,0.00018904,2]
[373193945,1752900649682,-460.0,0.00018904,2]
[373193947,1752900649691,-151.0,0.00018904,2]
[373193949,1752900649701,-1744.08,0.00018904,2]
[373193951,1752900649710,-460.0,0.00018904,2]
[373193953,1752900649719,-460.0,0.00018904,2]
[373193955,1752900649729,-151.0,0.00018904,2]
[373193957,1752900649739,-151.0,0.00018904,2]
[373193959,1752900649747,-151.0,0.00018904,2]
[373193961,1752900649757,-151.0,0.00018904,2]
[373193963,1752900649767,-460.0,0.00018904,2]
[373193965,1752900649782,-460.0,0.00018904,2]
[373193967,1752900649791,-1317.83,0.00018904,2]
[373193969,1752900649801,-217.40428983,0.00018915,2]
[373193971,1752900649811,-25000.0,0.00018915,2]
[373193973,1752900649821,-151.0,0.00018915,2]
[373193975,1752900649831,-151.0,0.00018915,2]
[373193977,1752900649843,-1201.486897,0.00018915,2]
[373193979,1752900649859,-1201.486897,0.00018915,2]
[373193981,1752900649872,-1143.57,0.00018963,2]
[373193983,1752900649881,-501.51906247,0.00018977,2]
[373193985,1752900649891,-501.04531724,0.00018977,2]
[373193987,1752900649901,-500.0,0.00018977,2]
[373193989,1752900649910,-500.0,0.00018977,2]
[373193991,1752900649920,-383.00536,0.00019,2]
[373193993,1752900649931,-160.0,0.00019029,2]
[373193995,1752900649940,-7356.9806417,0.00019038,2]
[373193997,1752900649950,-151.0,0.00019064,2]
[373193999,1752900649960,-151.0,0.00019064,2]
[373194001,1752900649969,-153.794426,0.00019064,2]
[373194003,1752900649979,-151.0,0.00019064,2]
[373194005,1752900649988,-309.301731,0.00019064,2]
[373194007,1752900649998,-309.301731,0.00019064,2]
[373194009,1752900650007,-3731.37734843,0.00019072,2]
[373194012,1752900650018,-152.81740345,0.00019089,2]
[373194014,1752900650027,-500.0,0.00019176,2]
[373194016,1752900650038,-560.82,0.00019178,2]
[373194018,1752900650047,-151.0,0.00019178,2]
[373194020,1752900650056,-151.0,0.00019178,2]
[373194022,1752900650066,-253.751263,0.00019178,2]
[373194024,1752900650076,-253.751263,0.00019178,2]
[373194026,1752900650086,-151.0,0.00019178,2]
[373194028,1752900650096,-1075.38,0.00019178,2]
[373194030,1752900650105,-460.0,0.00019178,2]
[373194032,1752900650115,-151.0,0.00019178,2]
[373194034,1752900650125,-228.289233,0.00019178,2]
[373194036,1752900650134,-152.450528,0.00019178,2]
[373194038,1752900650144,-228.289233,0.00019178,2]
[373194040,1752900650154,-151.0,0.00019178,2]
[373194042,1752900650167,-152.719308,0.00019178,2]
[373194044,1752900650177,-151.0,0.00019178,2]
[373194046,1752900650187,-151.0,0.00019178,2]
[373194048,1752900650196,-151.0,0.00019178,2]
[373194050,1752900650206,-151.0,0.00019178,2]
[373194052,1752900650215,-151.0,0.00019178,2]
[373194054,1752900650225,-178.585793,0.00019178,2]
[373194056,1752900650234,-178.585793,0.00019178,2]
[373194058,1752900650244,-460.0,0.00019178,2]
[373194060,1752900650257,-460.0,0.00019178,2]
[373194062,1752900650267,-589.46,0.00019178,2]
[373194064,1752900650277,-3599.72,0.00019178,2]
[373194066,1752900650286,-2287.74,0.00019178,2]
[373194068,1752900650298,-2754.9,0.00019178,2]
[373194070,1752900650307,-471.42,0.00019178,2]
[373194072,1752900650317,-460.0,0.00019178,2]
[373194074,1752900650328,-920.5,0.00019178,2]
[373194076,1752900650339,-1712.89,0.00019178,2]
[373194078,1752900650349,-557.01,0.00019178,2]
[373194080,1752900650358,-776.6,0.00019178,2]
[373194082,1752900650369,-460.0,0.00019178,2]
[373194084,1752900650378,-964.8,0.00019178,2]
[373194086,1752900650388,-893.47,0.00019178,2]
[373194088,1752900650398,-1517.57,0.00019178,2]
[373194090,1752900650407,-460.0,0.00019178,2]
[373194092,1752900650418,-460.0,0.00019178,2]
[373194094,1752900650428,-460.0,0.00019178,2]
[373194096,1752900650437,-512.78,0.00019178,2]
[373194098,1752900650447,-1602.46,0.00019178,2]
[373194100,1752900650456,-460.0,0.00019178,2]
[373194103,1752900650466,-1744.08,0.00019178,2]
[373194104,1752900650476,-460.0,0.00019178,2]
[373194107,1752900650486,-460.0,0.00019178,2]
[373194109,1752900650497,-460.0,0.00019178,2]
[373194111,1752900650506,-460.0,0.00019178,2]
[373194113,1752900650516,-1317.83,0.00019178,2]
[373194115,1752900650526,-5000.0,0.00019178,2]
[373194116,1752900650535,-5000.0,0.00019178,2]
[373194118,1752900650544,-171.15023,0.00019178,2]
[373194120,1752900650554,-440.43305097,0.00019227,2]
[373194122,1752900650564,-1143.57,0.00019237,2]
[373194125,1752900650574,-2794.93506346,0.00019256,2]
[373194127,1752900650583,-158.09469489,0.00019329,2]
[373194129,1752900650596,-618.97160078,0.0001935,2]
[373194131,1752900650606,-501.72457853,0.0001935,2]
[373194133,1752900650615,-501.03367433,0.0001935,2]
[373194135,1752900650625,-7356.9806417,0.00019357,2]
[373194137,1752900650635,-3731.37734843,0.00019383,2]
[373194139,1752900650645,-500.0,0.0001945,2]
[373194141,1752900650655,-272.7,0.00019451,2]
[373194143,1752900650665,-560.82,0.00019452,2]
[373194145,1752900650674,-1075.38,0.00019452,2]
[373194147,1752900650684,-329.39573044,0.00019452,2]
[373194149,1752900650694,-358.108017,0.00019452,2]
[373194151,1752900650705,-460.0,0.00019452,2]
[373194153,1752900650715,-460.0,0.00019452,2]
[373194155,1752900650725,-589.46,0.00019452,2]
[373194157,1752900650735,-3599.72,0.00019452,2]
[373194159,1752900650744,-2287.74,0.00019452,2]
[373194161,1752900650754,-2754.9,0.00019452,2]
[373194163,1752900650764,-471.42,0.00019452,2]
[373194165,1752900650773,-460.0,0.00019452,2]
[373194167,1752900650783,-920.5,0.00019452,2]
[373194169,1752900650793,-1712.89,0.00019452,2]
[373194171,1752900650802,-557.01,0.00019452,2]
[373194173,1752900650812,-776.6,0.00019452,2]
[373194175,1752900650823,-338.37138815,0.00019452,2]
[373194177,1752900650833,-964.8,0.00019452,2]
[373194179,1752900650847,-893.47,0.00019452,2]
[373194181,1752900650857,-1517.57,0.00019452,2]
[373194183,1752900650867,-460.0,0.00019452,2]
[373194186,1752900650877,-460.0,0.00019452,2]
[373194188,1752900650887,-460.0,0.00019452,2]
[373194190,1752900650897,-512.78,0.00019452,2]
[373194192,1752900650907,-1602.46,0.00019452,2]
[373194194,1752900650917,-311.9330551,0.00019452,2]
[373194196,1752900650928,-1744.08,0.00019452,2]
[373194198,1752900650937,-460.0,0.00019452,2]
[373194200,1752900650946,-460.0,0.00019452,2]
[373194202,1752900650956,-460.0,0.00019452,2]
[373194203,1752900650965,-460.0,0.00019452,2]
[373194205,1752900650975,-1317.83,0.00019452,2]
[373194207,1752900650985,-358.6756731,0.00019452,2]
[373194209,1752900650995,-25000.0,0.00019463,2]
[373194211,1752900651004,-151.208484,0.00019463,2]
[373194213,1752900651014,-151.0,0.00019463,2]
[373194215,1752900651024,-153.378373,0.00019463,2]
[373194217,1752900651034,-152.405434,0.00019463,2]
[373194220,1752900651043,-203.956326,0.00019463,2]
[373194222,1752900651053,-203.956326,0.00019463,2]
[373194224,1752900651063,-200.919079,0.00019463,2]
[373194226,1752900651072,-200.919079,0.00019463,2]
[373194228,1752900651083,-151.0,0.00019463,2]
[373194229,1752900651094,-151.0,0.00019463,2]
[373194231,1752900651104,-151.0,0.00019463,2]
[373194233,1752900651114,-151.0,0.00019463,2]
[373194235,1752900651123,-151.0,0.00019463,2]
[373194238,1752900651133,-267.266158,0.00019463,2]
[373194240,1752900651142,-151.0,0.00019463,2]
[373194242,1752900651152,-151.0,0.00019463,2]
[373194244,1752900651162,-151.0,0.00019463,2]
[373194246,1752900651171,-234.571149,0.00019463,2]
[373194248,1752900651182,-151.0,0.00019463,2]
[373194250,1752900651191,-151.0,0.00019463,2]
[373194252,1752900651201,-151.0,0.00019463,2]
[373194254,1752900651210,-151.0,0.00019463,2]
[373194256,1752900651220,-151.0,0.00019463,2]
[373194258,1752900651231,-1143.57,0.00019511,2]
[373194260,1752900651240,-501.15015757,0.00019525,2]
[373194262,1752900651252,-503.40908628,0.00019525,2]
[373194264,1752900651261,-260.0,0.00019577,2]
[373194266,1752900651271,-7356.9806417,0.00019594,2]
[373194268,1752900651281,-577.1515091,0.00019616,2]
[373194270,1752900651291,-577.1515091,0.00019616,2]
[373194272,1752900651301,-577.1515091,0.00019616,2]
[373194274,1752900651310,-577.1515091,0.00019616,2]
[373194276,1752900651320,-587.0,0.00019618,2]
[373194278,1752900651329,-3731.37734843,0.00019693,2]
[373194280,1752900651340,-500.0,0.00019724,2]
[373194282,1752900651350,-560.82,0.00019726,2]
[373194284,1752900651360,-1075.38,0.00019726,2]
[373194286,1752900651370,-460.0,0.00019726,2]
[373194288,1752900651380,-460.0,0.00019726,2]
[373194290,1752900651389,-589.46,0.00019726,2]
[373194292,1752900651399,-3599.72,0.00019726,2]
[373194294,1752900651409,-2287.74,0.00019726,2]
[373194295,1752900651418,-2754.9,0.00019726,2]
[373194297,1752900651428,-471.42,0.00019726,2]
[373194299,1752900651438,-302.33,0.00019726,2]
[373194301,1752900651448,-920.5,0.00019726,2]
[373194303,1752900651458,-1712.89,0.00019726,2]
[373194305,1752900651468,-557.01,0.00019726,2]
[373194307,1752900651477,-776.6,0.00019726,2]
[373194309,1752900651487,-151.0,0.00019726,2]
[373194311,1752900651497,-151.982926,0.00019726,2]
[373194313,1752900651507,-964.8,0.00019726,2]
[373194314,1752900651516,-151.0,0.00019726,2]
[373194316,1752900651526,-893.47,0.00019726,2]
[373194318,1752900651536,-151.0,0.00019726,2]
[373194320,1752900651546,-1517.57,0.00019726,2]
[373194322,1752900651556,-201.74861646,0.00019726,2]
[373194324,1752900651565,-460.0,0.00019726,2]
[373194326,1752900651575,-154.497901,0.00019726,2]
[373194328,1752900651588,-460.0,0.00019726,2]
[373194330,1752900651598,-512.78,0.00019726,2]
[373194332,1752900651608,-151.0,0.00019726,2]
[373194333,1752900651618,-1602.46,0.00019726,2]
[373194335,1752900651628,-151.0,0.00019726,2]
[373194337,1752900651638,-1744.08,0.00019726,2]
[373194339,1752900651648,-460.0,0.00019726,2]
[373194341,1752900651658,-460.0,0.00019726,2]
[373194343,1752900651668,-460.0,0.00019726,2]
[373194345,1752900651678,-460.0,0.00019726,2]
[373194347,1752900651687,-1317.83,0.00019726,2]
[373194349,1752900651697,-500.0,0.00019729,2]
[373194351,1752900651707,-920.24987284,0.00019729,2]
[373194353,1752900651717,-920.24987284,0.00019729,2]
[373194355,1752900651727,-920.24987284,0.00019729,2]
[373194356,1752900651737,-200.86567536,0.00019729,2]
[373194358,1752900651746,-920.24987284,0.00019729,2]
[373194360,1752900651756,-920.24987284,0.00019729,2]
[373194362,1752900651766,-920.24987284,0.00019729,2]
[373194364,1752900651776,-920.24987284,0.00019729,2]
[373194366,1752900651786,-920.24987284,0.00019729,2]
[373194368,1752900651796,-920.24987284,0.00019729,2]
[373194370,1752900651807,-920.24987284,0.00019729,2]
[373194372,1752900651817,-920.24987284,0.00019729,2]
[373194374,1752900651828,-920.24987284,0.00019729,2]
[373194376,1752900651842,-920.24987284,0.00019729,2]
[373194377,1752900651852,-920.24987284,0.00019729,2]
[373194379,1752900651862,-920.24987284,0.00019729,2]
[373194381,1752900651872,-920.24987284,0.00019729,2]
[373194383,1752900651882,-800.0,0.00019734,2]
[373194385,1752900651892,-215.0738,0.00019736,2]
[373194387,1752900651902,-7356.9806417,0.00019784,2]
[373194389,1752900651912,-1143.57,0.00019785,2]
[373194390,1752900651922,-154.6575653,0.00019852,2]
[373194392,1752900651931,-153.0,0.00019852,2]
[373194394,1752900651941,-306.0,0.00019852,2]
[373194396,1752900651951,-153.0,0.00019852,2]
[373194398,1752900651960,-153.0,0.00019852,2]
[373194400,1752900651970,-153.0,0.00019852,2]
[373194402,1752900651980,-153.0,0.00019852,2]
[373194404,1752900651989,-151.0,0.00019852,2]
[373194405,1752900651999,-151.0,0.00019852,2]
[373194407,1752900652010,-1201.486897,0.00019852,2]
[373194409,1752900652021,-1201.486897,0.00019852,2]
[373194411,1752900652031,-151.0,0.000199,2]
[373194413,1752900652041,-517.294,0.00019989,2]